[Event "23rd European Women Club Cup 2018"]
[Site "Halkidiki"]
[Date "2018.10.13"]
[Round "2"]
[White "Tsolakidou, Stavroula"]
[Black "Mar, Karmen"]
[Result "1-0"]
[ECO "B52"]
[WhiteElo "2393"]
[BlackElo "2107"]
[Annotator "NA"]
[PlyCount "61"]
[EventDate "2018.10.12"]
[EventType "team-tourn"]
[EventCountry "GRE"]
[SourceTitle "playchess.com"]
[Source "ChessBase"]
[SourceQuality "1"]
[WhiteTeam "Pentole Agnelli"]
[BlackTeam "Maribor"]
[TimeControl "40/5400+30:1800+30"]

1. e4 {[%emt 0:00:00]} c5 {[%emt 0:00:00]} 2. Nf3 {[%emt 0:00:00]} d6 {[%emt 0:00:00]} 3. Bb5+ {[%emt 0:00:00]} Bd7 {[%emt 0:00:00]} 4. Bxd7+ {[%emt 0:00:07]} Qxd7 {[%emt 0:00:04]} 5. O-O {[%emt 0:00:08]} Nc6 {[%emt 0:02:15]} 6. c3 {[%emt 0:00:14]} Nf6 {[%emt 0:00:43]} 7. d4 {[%emt 0:00:29]} Nxe4 {[%emt 0:00:49]} 8. d5 {[%emt 0:00:16]} Ne5 {[%emt 0:00:12]} 9. Re1 {[%emt 0:00:17]} Nf6 {[%emt 0:00:18]} 10. Nxe5 {[%emt 0:00:17]} dxe5 {[%emt 0:00:06]} 11. c4 {[%emt 0:00:23]} e6 {[%emt 0:06:52]} 12. Nc3 {[%emt 0:02:26]} O-O-O {[%emt 0:14:31]} 13. Bg5 {[%emt 0:02:34]} h6 {[%emt 0:08:13] LiveBook: 7 Partien} 14. Bh4 {[%emt 0:00:37]} Be7 {[%emt 0:05:37]} 15. Qf3 {[%emt 0:06:23]} e4 {[%emt 0:13:50]} 16. Nxe4 {[%emt 0:19:28]} Nxe4 {[%emt 0:08:03]} 17. Bxe7 $16 {[%emt 0:02:27]} ({But not} 17. Qxe4 $6 Bxh4 18. Qxh4 exd5 $11) 17... Qxe7 {[%emt 0:01:00]} 18. Rxe4 {[%emt 0:00:34]} Rd6 {[%emt 0:07:09]} 19. Rae1 {[%emt 0:02:07]} Re8 {[%emt 0:03:04]} 20. Re5 {[%emt 0:07:13]} Ra6 {[%emt 0:07:55]} 21. a3 {[%emt 0:12:17]} Rb6 {[%emt 0:03:01]} 22. b4 {[%emt 0:10:01]} cxb4 {[%emt 0:03:11]} 23. c5 {[%emt 0:00:20]} Qxc5 {[%emt 0:07:37]} 24. dxe6 {[%emt 0:01:00]} Qf8 {[%emt 0:05:23]} 25. exf7 {[%emt 0:04:27]} Rxe5 {[%emt 0:01:28]} 26. Rxe5 {[%emt 0:00:07]} bxa3 {[%emt 0:00:45]} 27. Re8+ {[%emt 0:01:30]} Kc7 {[%emt 0:00:12]} 28. g3 {[%emt 0:05:25]} a2 {[%emt 0:01:06]} 29. Qc3+ {[%emt 0:00:33]} Rc6 {[%emt 0:00:30]} 30. Qa5+ {[%emt 0:00:24]} Kd7 {[%emt 0:00:18]} 31. Qd8# {[%emt 0:00:09]} 1-0

[Event "23rd European Women Club Cup 2018"]
[Site "Halkidiki"]
[Date "2018.10.13"]
[Round "2"]
[White "Balaian, Alina"]
[Black "Guerini, Silvia jr"]
[Result "1-0"]
[ECO "B81"]
[WhiteElo "2238"]
[BlackElo "1977"]
[Annotator "NA"]
[PlyCount "57"]
[EventDate "2018.10.12"]
[EventType "team-tourn"]
[EventCountry "GRE"]
[SourceTitle "playchess.com"]
[Source "ChessBase"]
[SourceQuality "1"]
[WhiteTeam "SSHOR"]
[BlackTeam "Banca Alpi Marittime"]
[TimeControl "40/5400+30:1800+30"]

1. e4 {[%emt 0:00:00]} c5 {[%emt 0:00:00]} 2. Nf3 {[%emt 0:00:00]} e6 {[%emt 0:00:00]} 3. d4 {[%emt 0:00:00]} cxd4 {[%emt 0:00:00]} 4. Nxd4 {[%emt 0:00:00]} Nf6 {[%emt 0:00:30]} 5. Nc3 {[%emt 0:00:00]} d6 {[%emt 0:00:16]} 6. g4 {[%emt 0:00:15]} h6 {[%emt 0:00:12]} 7. Be3 {[%emt 0:01:47]} Nc6 {[%emt 0:04:31]} 8. h3 {[%emt 0:00:15]} a6 {[%emt 0:00:50]} 9. Bg2 {[%emt 0:00:19]} Qc7 {[%emt 0:03:42]} 10. Qe2 {[%emt 0:01:38]} Be7 {[%emt 0:03:54]} 11. f4 {[%emt 0:04:42]} Na5 {[%emt 0:03:38]} 12. Rd1 {[%emt 0:01:33]} Nc4 {[%emt 0:06:39]} 13. Bc1 {[%emt 0:00:10]} Bd7 $14 {[%emt 0:07:40]} (13... g5 $5 {[%cal Rg5f4]}) 14. O-O {[%emt 0:01:21]} Nh7 {[%emt 0:14:40]} 15. b3 {[%emt 0:05:47]} Na5 {[%emt 0:03:12]} 16. Bb2 {[%emt 0:05:25]} Nc6 {[%emt 0:02:00]} 17. Qe3 {[%emt 0:10:12]} Nf6 {[%emt 0:18:27]} 18. Nce2 {[%emt 0:02:25]} Rg8 {[%emt 0:04:32]} 19. c4 {[%emt 0:00:49]} Nxd4 {[%emt 0:02:41]} 20. Nxd4 {[%emt 0:04:12]} Bc6 {[%emt 0:02:43]} 21. g5 {[%emt 0:04:17]} Nd7 {[%emt 0:01:39]} 22. g6 {[%emt 0:00:21]} Nf8 {[%emt 0:05:59]} 23. gxf7+ {[%emt 0:00:41]} Kxf7 {[%emt 0:00:06]} 24. Nxc6 {[%emt 0:04:52]} bxc6 {[%emt 0:00:22]} 25. e5 {[%emt 0:00:41]} d5 {[%emt 0:06:03]} 26. f5 {[%emt 0:02:10]} Rd8 {[%emt 0:02:26]} 27. fxe6+ {[%emt 0:02:35]} Kxe6 {[%emt 0:00:34]} 28. Qd4 {[%emt 0:06:36]} Bg5 {[%emt 0:04:16]} 29. cxd5+ {[%emt 0:00:42] Kxd5} 1-0

[Event "23rd European Women Club Cup 2018"]
[Site "Halkidiki"]
[Date "2018.10.13"]
[Round "2"]
[White "Haussernot, Cecile"]
[Black "Klinova, Masha"]
[Result "1-0"]
[ECO "B13"]
[WhiteElo "2204"]
[BlackElo "2288"]
[Annotator "NA"]
[PlyCount "65"]
[EventDate "2018.10.12"]
[EventType "team-tourn"]
[EventCountry "GRE"]
[SourceTitle "playchess.com"]
[Source "ChessBase"]
[SourceQuality "1"]
[WhiteTeam "Mulhouse"]
[BlackTeam "Beer Sheva"]
[TimeControl "40/5400+30:1800+30"]

1. e4 {[%emt 0:00:00]} c6 {[%emt 0:00:00]} 2. d4 {[%emt 0:00:00]} d5 {[%emt 0:00:00]} 3. exd5 {[%emt 0:01:06]} cxd5 {[%emt 0:00:00]} 4. Bd3 {[%emt 0:00:06]} Nc6 {[%emt 0:00:57]} 5. c3 {[%emt 0:00:17]} Nf6 {[%emt 0:03:12]} 6. Nf3 {[%emt 0:05:41]} Bg4 {[%emt 0:06:47]} 7. O-O {[%emt 0:00:44]} Bxf3 {[%emt 0:04:04]} 8. Qxf3 {[%emt 0:00:05]} e6 {[%emt 0:00:04]} 9. Qg3 $14 {[%emt 0:18:09]} Bd6 {[%emt 0:29:47]} 10. f4 {[%emt 0:00:25]} O-O {[%emt 0:01:13]} 11. Nd2 {[%emt 0:00:36]} Ne7 {[%emt 0:04:47]} 12. Nf3 {[%emt 0:00:25]} Ng6 {[%emt 0:07:38]} 13. Ne5 {[%emt 0:07:48]} Qc7 {[%emt 0:02:52]} 14. h4 {[%emt 0:09:06]} Rfe8 {[%emt 0:07:02]} 15. Qh3 {[%emt 0:00:34]} Ne4 {[%emt 0:03:36]} 16. h5 {[%emt 0:01:03]} Nf8 {[%emt 0:01:13]} 17. h6 {[%emt 0:06:31]} g6 {[%emt 0:01:18]} 18. Be3 {[%emt 0:07:12]} f6 {[%emt 0:01:41]} 19. Ng4 {[%emt 0:10:34]} Nd7 {[%emt 0:03:06]} 20. Rac1 {[%emt 0:00:57]} f5 {[%emt 0:01:11]} 21. Ne5 {[%emt 0:00:18]} Nxe5 {[%emt 0:02:50]} 22. fxe5 {[%emt 0:00:14]} Bf8 {[%emt 0:02:26]} 23. c4 {[%emt 0:03:54]} Qd7 {[%emt 0:00:04]} 24. g4 {[%emt 0:02:38]} Rac8 {[%emt 0:02:43]} 25. b3 {[%emt 0:02:40]} dxc4 {[%emt 0:01:50]} 26. bxc4 {[%emt 0:01:34]} Kh8 {[%emt 0:00:29]} 27. gxf5 {[%emt 0:02:01]} gxf5 {[%emt 0:00:48]} 28. Bxe4 {[%emt 0:01:49]} fxe4 {[%emt 0:00:06]} 29. Kh1 {[%emt 0:00:08]} Ba3 {[%emt 0:03:30]} 30. Bg5 {[%emt 0:01:50]} Be7 {[%emt 0:00:48]} 31. Rf7 {[%emt 0:00:20]} Qxd4 {[%emt 0:00:58]} 32. Qxe6 {[%emt 0:03:11]} Bxg5 {[%emt 0:00:29]} 33. Qf5 {[%emt 0:00:06]} 1-0

[Event "23rd European Women Club Cup 2018"]
[Site "Halkidiki"]
[Date "2018.10.13"]
[Round "2"]
[White "Vidic, Teja"]
[Black "Zimina, Olga"]
[Result "0-1"]
[ECO "B14"]
[WhiteElo "2116"]
[BlackElo "2431"]
[Annotator "NA"]
[PlyCount "66"]
[EventDate "2018.10.12"]
[EventType "team-tourn"]
[EventCountry "GRE"]
[SourceTitle "playchess.com"]
[Source "ChessBase"]
[SourceQuality "1"]
[WhiteTeam "Maribor"]
[BlackTeam "Pentole Agnelli"]
[TimeControl "40/5400+30:1800+30"]

1. e4 {[%emt 0:00:00]} c6 {[%emt 0:00:00]} 2. d4 {[%emt 0:00:00]} d5 {[%emt 0:00:00]} 3. exd5 {[%emt 0:00:00]} cxd5 {[%emt 0:00:00]} 4. c4 {[%emt 0:00:00]} Nf6 {[%emt 0:00:00]} 5. Nc3 {[%emt 0:00:04]} g6 {[%emt 0:00:01]} 6. Qb3 {[%emt 0:00:10]} Bg7 {[%emt 0:00:05]} 7. cxd5 {[%emt 0:00:04]} O-O {[%emt 0:00:06]} 8. Be2 {[%emt 0:00:03]} b6 {[%emt 0:00:05]} 9. Bf3 {[%emt 0:01:42]} Bb7 {[%emt 0:00:16]} 10. Nge2 {[%emt 0:04:43]} Qd7 {[%emt 0:00:34]} 11. O-O {[%emt 0:02:32]} Na6 {[%emt 0:03:02]} 12. a4 {[%emt 0:08:08]} Nc7 {[%emt 0:09:08]} 13. Nf4 {[%emt 0:10:56]} Rab8 {[%emt 0:00:45]} 14. Re1 {[%emt 0:05:57]} Rfd8 {[%emt 0:04:12]} 15. a5 {[%emt 0:07:15]} bxa5 {[%emt 0:14:31]} 16. Qa3 {[%emt 0:00:04]} Bf8 {[%emt 0:00:19]} 17. Qxa5 {[%emt 0:01:41]} Ncxd5 {[%emt 0:07:03]} 18. Nd3 $11 {[%emt 0:10:38]} ({Of course not} 18. Qxa7 Nxc3 19. bxc3 Ra8 $17) 18... Qf5 {[%emt 0:16:30]} 19. Nc5 {[%emt 0:03:42]} Bc6 {[%emt 0:04:39]} 20. Re5 {[%emt 0:04:00]} Qc8 {[%emt 0:00:26]} 21. Na6 {[%emt 0:00:44]} Rb6 {[%emt 0:01:35]} 22. Nxd5 {[%emt 0:09:56]} Bxd5 {[%emt 0:05:44]} 23. Bxd5 {[%emt 0:13:59]} Rxd5 {[%emt 0:10:57]} 24. Nc5 {[%emt 0:02:12]} Rxd4 {[%emt 0:06:48]} 25. Be3 {[%emt 0:01:12]} Rd8 {[%emt 0:00:40]} 26. Rc1 {[%emt 0:04:11]} Ng4 {[%emt 0:02:15]} 27. Re4 {[%emt 0:04:39]} Nxe3 {[%emt 0:00:52]} 28. fxe3 {[%emt 0:00:04]} Rxb2 {[%emt 0:00:48]} 29. Qa1 {[%emt 0:04:22]} Rdd2 {[%emt 0:00:33]} 30. Ne6 {[%emt 0:01:11]} Rxg2+ {[%emt 0:00:34]} 31. Kh1 {[%emt 0:00:11]} Rxh2+ {[%emt 0:02:59]} 32. Kg1 {[%emt 0:00:03]} Rbg2+ {[%emt 0:00:19]} 33. Kf1 {[%emt 0:00:04]} Rc2 {[%emt 0:00:21]} 0-1

[Event "23rd European Women Club Cup 2018"]
[Site "Halkidiki"]
[Date "2018.10.13"]
[Round "2"]
[White "Neuhauser, Salome"]
[Black "Buzukashvili, Sofia"]
[Result "1-0"]
[ECO "B84"]
[WhiteElo "2115"]
[BlackElo "1936"]
[Annotator "NA"]
[PlyCount "90"]
[EventDate "2018.10.12"]
[EventType "team-tourn"]
[EventCountry "GRE"]
[SourceTitle "playchess.com"]
[Source "ChessBase"]
[SourceQuality "1"]
[WhiteTeam "Mulhouse"]
[BlackTeam "Beer Sheva"]
[TimeControl "40/5400+30:1800+30"]

1. e4 {[%emt 0:00:00]} c5 {[%emt 0:00:00]} 2. Nf3 {[%emt 0:00:00]} d6 {[%emt 0:00:00]} 3. d4 {[%emt 0:00:16]} cxd4 {[%emt 0:00:01]} 4. Nxd4 {[%emt 0:00:02]} Nf6 {[%emt 0:00:14]} 5. Nc3 {[%emt 0:00:04]} a6 {[%emt 0:00:21]} 6. Be2 {[%emt 0:02:58]} e6 {[%emt 0:01:01]} 7. Be3 {[%emt 0:09:11]} Qc7 {[%emt 0:02:08]} 8. g4 b5 (8... d5 $11 {remains equal.}) 9. g5 {[%emt 0:16:39]} Nfd7 {[%emt 0:10:45]} 10. a3 $14 {[%emt 0:00:19] LiveBook: 23 Games} Nc5 {[%emt 0:03:22]} 11. f4 {[%emt 0:07:11]} Bb7 {[%emt 0:07:28]} 12. Bf3 {[%emt 0:01:27]} Nc6 {[%emt 0:05:00]} 13. Nxc6 {[%emt 0:31:20]} Qxc6 {[%emt 0:07:00]} 14. Qe2 {[%emt 0:03:09]} O-O-O {[%emt 0:04:20]} 15. O-O-O {[%emt 0:00:56]} Kb8 {[%emt 0:05:22]} 16. Rhf1 {[%emt 0:01:33]} Be7 {[%emt 0:02:34]} 17. f5 {[%emt 0:03:12]} e5 {[%emt 0:12:41]} 18. Nd5 {[%emt 0:01:53]} Rhe8 {[%emt 0:06:28]} 19. f6 {[%emt 0:01:28]} gxf6 {[%emt 0:01:02]} 20. gxf6 {[%emt 0:00:01]} Bf8 {[%emt 0:00:07]} 21. Kb1 {[%emt 0:00:29]} a5 {[%emt 0:06:15]} 22. Qg2 {[%emt 0:01:57]} Ba6 {[%emt 0:05:08]} 23. Be2 {[%emt 0:02:48]} Rc8 {[%emt 0:03:28]} 24. Bg4 {[%emt 0:01:28]} Ne6 {[%emt 0:02:35]} 25. Rf2 {[%emt 0:01:09]} Qb7 {[%emt 0:02:49]} 26. Qh3 {[%emt 0:03:41]} Rc4 {[%emt 0:06:06]} 27. Qxh7 {[%emt 0:02:04]} Nc5 {[%emt 0:00:24]} 28. Bxc5 {[%emt 0:02:14]} Rxc5 {[%emt 0:00:36]} 29. Bh5 {[%emt 0:00:26]} Rec8 {[%emt 0:02:27]} 30. Qxf7 {[%emt 0:00:30]} Qc6 {[%emt 0:00:18]} 31. c3 {[%emt 0:00:30]} b4 {[%emt 0:00:38]} 32. axb4 {[%emt 0:00:22]} axb4 {[%emt 0:00:08]} 33. Be2 {[%emt 0:04:37]} Bxe2 34. Rxe2 Qa4 {[%emt 0:02:46]} 35. Rd3 {[%emt 0:01:07]} b3 {[%emt 0:02:12]} 36. Qh5 {[%emt 0:01:39]} Ra5 {[%emt 0:00:56]} 37. Kc1 {[%emt 0:00:17]} Qa1+ {[%emt 0:00:13]} 38. Kd2 {[%emt 0:00:01]} Qxb2+ {[%emt 0:00:42]} 39. Ke1 {[%emt 0:00:03]} Ra1+ {[%emt 0:00:28]} 40. Kf2 {[%emt 0:00:00]} Qc1 {[%emt 0:00:00]} 41. Qg4 {[%emt 0:23:16]} b2 {[%emt 0:05:39]} 42. Ne7 {[%emt 0:06:21]} Bxe7 {[%emt 0:04:47]} 43. fxe7 {[%emt 0:00:01]} Qf1+ {[%emt 0:01:17]} 44. Kg3 {[%emt 0:00:59]} Qf4+ {[%emt 0:00:24]} 45. Qxf4 {[%emt 0:00:17]} exf4+ {[%emt 0:00:05]} 1-0

[Event "23rd European Women Club Cup 2018"]
[Site "Halkidiki"]
[Date "2018.10.13"]
[Round "2"]
[White "Andolfatto, Maria"]
[Black "Semenova, Elena"]
[Result "0-1"]
[ECO "D02"]
[WhiteElo "2068"]
[BlackElo "2263"]
[Annotator "ChessBase"]
[PlyCount "118"]
[EventDate "2018.10.12"]
[EventType "team-tourn"]
[EventCountry "GRE"]
[SourceTitle "playchess.com"]
[Source "ChessBase"]
[SourceQuality "1"]
[WhiteTeam "Banca Alpi Marittime"]
[BlackTeam "SSHOR"]
[TimeControl "40/5400+30:1800+30"]

1. Nf3 {[%emt 0:00:00]} d5 {[%emt 0:00:00]} 2. d4 {[%emt 0:00:05]} Nf6 {[%emt 0:00:06]} 3. g3 {[%emt 0:00:16]} e6 {[%emt 0:02:34]} 4. Bg2 {[%emt 0:00:19]} b5 {[%emt 0:04:02]} 5. O-O {[%emt 0:04:09]} Nbd7 {[%emt 0:01:46]} 6. a4 {[%emt 0:03:35]} b4 {[%emt 0:01:30]} 7. a5 {[%emt 0:03:03]} Rb8 {[%emt 0:13:27]} 8. Nbd2 {[%emt 0:07:35]} Be7 {[%emt 0:03:05]} 9. c4 {[%emt 0:06:11]} bxc3 {[%emt 0:01:02]} 10. bxc3 {[%emt 0:00:21]} c5 {[%emt 0:09:04]} 11. c4 {[%emt 0:04:17]} O-O {[%emt 0:03:31]} 12. Ba3 {[%emt 0:04:25]} Ba6 {[%emt 0:07:26]} 13. Qc2 {[%emt 0:03:36]} cxd4 {[%emt 0:06:27]} 14. Nxd4 {[%emt 0:12:30]} Rc8 {[%emt 0:02:08]} 15. Qa4 {[%emt 0:03:37]} Bxa3 {[%emt 0:02:37]} 16. Rxa3 {[%emt 0:01:11]} Nc5 {[%emt 0:03:21]} 17. Qd1 {[%emt 0:01:09]} dxc4 {[%emt 0:07:14]} 18. Nc6 {[%emt 0:06:56]} Rxc6 {[%emt 0:08:02]} 19. Bxc6 {[%emt 0:02:22]} Qd6 {[%emt 0:00:06]} 20. Nxc4 {[%emt 0:06:00]} Qxc6 {[%emt 0:00:33]} 21. Qd4 {[%emt 0:02:13]} Ncd7 {[%emt 0:05:59]} 22. Ne5 {[%emt 0:03:06]} Nxe5 {[%emt 0:01:04]} 23. Qxe5 {[%emt 0:00:11]} Bb7 {[%emt 0:03:18]} 24. f3 {[%emt 0:00:39]} Nd5 {[%emt 0:01:05]} 25. Raa1 {[%emt 0:02:08]} Qc3 {[%emt 0:04:49]} 26. Qxc3 {[%emt 0:09:27]} Nxc3 {[%emt 0:00:03]} 27. a6 {[%emt 0:01:49]} Bc6 {[%emt 0:02:52]} 28. Kf2 {[%emt 0:03:10]} Bb5 {[%emt 0:01:17]} 29. Rfe1 {[%emt 0:00:42]} Rd8 {[%emt 0:01:42]} 30. Rac1 {[%emt 0:02:01]} Nd5 {[%emt 0:00:57]} 31. Red1 {[%emt 0:01:07]} Ra8 {[%emt 0:00:29]} 32. e4 {[%emt 0:03:03]} Nb6 {[%emt 0:00:30]} 33. Rc7 {[%emt 0:01:26]} Kf8 {[%emt 0:00:17]} 34. Ra1 {[%emt 0:00:24]} Ke8 {[%emt 0:01:05]} 35. Ra5 {[%emt 0:00:32]} Bd7 {[%emt 0:00:37]} 36. Rac5 {[%emt 0:02:41]} Bc8 {[%emt 0:02:29]} 37. Ra5 {[%emt 0:00:50]} Nd7 {[%emt 0:00:47]} 38. Ke3 {[%emt 0:00:51]} Kd8 {[%emt 0:00:12]} 39. Rc3 {[%emt 0:00:18]} Rb8 {[%emt 0:00:23]} 40. h4 {[%emt 0:00:00]} Rb6 {[%emt 0:00:00]} 41. Kd4 {[%emt 0:07:20]} Rd6+ {[%emt 0:04:59]} 42. Ke3 {[%emt 0:00:38]} Nb8 {[%emt 0:07:43]} 43. Rb3 {[%emt 0:09:33]} Kc7 {[%emt 0:03:23]} 44. Rc5+ {[%emt 0:03:26]} Rc6 {[%emt 0:00:40]} 45. Rcb5 {[%emt 0:00:40]} Nxa6 {[%emt 0:00:37]} 46. Kd4 {[%emt 0:00:13]} Rd6+ {[%emt 0:01:01]} 47. Ke3 {[%emt 0:00:53]} Rb6 {[%emt 0:00:38]} 48. Rc3+ {[%emt 0:00:38]} Rc6 {[%emt 0:00:41]} 49. Ra3 {[%emt 0:00:46]} Rb6 {[%emt 0:03:29]} 50. Rba5 {[%emt 0:02:38]} Kc6 {[%emt 0:03:31]} 51. Rc3+ {[%emt 0:00:38]} Kb7 {[%emt 0:00:32]} 52. Rca3 {[%emt 0:00:22]} Kb8 {[%emt 0:01:03]} 53. R3a4 {[%emt 0:03:04]} Bb7 {[%emt 0:00:40]} 54. Rd4 {[%emt 0:01:20]} Kc7 {[%emt 0:00:57]} 55. Rda4 {[%emt 0:01:05]} Rb3+ {[%emt 0:01:42]} 56. Kf4 {[%emt 0:00:53]} Kb6 {[%emt 0:01:55]} 57. Ra1 {[%emt 0:02:14]} f6 {[%emt 0:00:16]} 58. Rh5 {[%emt 0:01:25]} e5+ {[%emt 0:00:20]} 59. Kg4 {[%emt 0:00:32]} Bc8+ {[%emt 0:00:04]} 0-1

[Event "23rd European Women Club Cup 2018"]
[Site "Halkidiki"]
[Date "2018.10.13"]
[Round "2"]
[White "Kumanska, Olena"]
[Black "Richard, Emma"]
[Result "0-1"]
[ECO "A46"]
[WhiteElo "2054"]
[BlackElo "2127"]
[Annotator "NA"]
[PlyCount "70"]
[EventDate "2018.10.12"]
[EventType "team-tourn"]
[EventCountry "GRE"]
[SourceTitle "playchess.com"]
[Source "ChessBase"]
[SourceQuality "1"]
[WhiteTeam "Beer Sheva"]
[BlackTeam "Mulhouse"]
[TimeControl "40/5400+30:1800+30"]

1. d4 {[%emt 0:00:00]} Nf6 {[%emt 0:00:00]} 2. Nf3 {[%emt 0:00:00]} e6 {[%emt 0:00:00]} 3. Bf4 {[%emt 0:00:01]} c5 {[%emt 0:00:53]} 4. e3 {[%emt 0:00:25]} Nc6 {[%emt 0:01:56]} 5. c3 {[%emt 0:00:17]} cxd4 {[%emt 0:04:30]} 6. exd4 {[%emt 0:00:20]} Be7 {[%emt 0:01:13]} 7. Bd3 {[%emt 0:00:20]} d6 {[%emt 0:01:50]} 8. O-O {[%emt 0:00:18]} O-O {[%emt 0:00:22]} 9. Qe2 {[%emt 0:01:17]} Re8 {[%emt 0:07:53]} 10. Bg3 {[%emt 0:02:58]} Nh5 {[%emt 0:12:39]} 11. Nfd2 $15 {[%emt 0:04:25]} (11. Na3 $11) 11... g6 {[%emt 0:03:42]} 12. b4 {[%emt 0:02:38]} a6 {[%emt 0:01:34]} 13. a4 {[%emt 0:00:15]} f5 {[%emt 0:06:54]} 14. f4 {[%emt 0:01:40]} Bf6 {[%emt 0:03:04]} 15. Qf2 {[%emt 0:04:48]} Nxg3 {[%emt 0:00:34]} 16. hxg3 {[%emt 0:00:15]} e5 {[%emt 0:02:04]} 17. d5 {[%emt 0:02:00]} e4 {[%emt 0:19:34]} 18. dxc6 {[%emt 0:01:16]} exd3 {[%emt 0:00:05]} 19. Nc4 {[%emt 0:12:01]} bxc6 {[%emt 0:01:59]} 20. Qf3 {[%emt 0:03:07]} d5 {[%emt 0:02:45]} 21. Na5 {[%emt 0:15:35]} Qb6+ {[%emt 0:02:15]} 22. Kh2 {[%emt 0:00:50]} Re3 {[%emt 0:04:54]} 23. Qf2 {[%emt 0:00:34]} Bd7 {[%emt 0:00:30]} 24. Ra2 {[%emt 0:03:14]} Rae8 {[%emt 0:05:37]} 25. Rd2 {[%emt 0:02:42]} c5 {[%emt 0:05:17]} 26. Nb3 {[%emt 0:01:36]} cxb4 {[%emt 0:01:01]} 27. Rxd3 {[%emt 0:01:30]} bxc3 {[%emt 0:00:27]} 28. a5 {[%emt 0:02:53]} Qxb3 {[%emt 0:02:10]} 29. Rxe3 {[%emt 0:00:05]} d4 {[%emt 0:00:52]} 30. Rxe8+ {[%emt 0:00:18]} Bxe8 {[%emt 0:00:04]} 31. Qf3 {[%emt 0:01:24]} Qe6 {[%emt 0:00:47]} 32. Na3 {[%emt 0:07:59]} Bc6 {[%emt 0:00:18]} 33. Qd1 {[%emt 0:00:29]} Qd5 {[%emt 0:00:58]} 34. Rf2 {[%emt 0:01:06]} d3 {[%emt 0:00:21]} 35. Qb1 {[%emt 0:01:13]} d2 {[%emt 0:00:24]} 0-1

[Event "23rd European Women Club Cup 2018"]
[Site "Halkidiki"]
[Date "2018.10.13"]
[Round "2"]
[White "Santeramo, Alessia"]
[Black "Belenkaya, Dina"]
[Result "0-1"]
[ECO "B19"]
[WhiteElo "2054"]
[BlackElo "2329"]
[Annotator "NA"]
[PlyCount "112"]
[EventDate "2018.10.12"]
[EventType "team-tourn"]
[EventCountry "GRE"]
[SourceTitle "playchess.com"]
[Source "ChessBase"]
[SourceQuality "1"]
[WhiteTeam "Banca Alpi Marittime"]
[BlackTeam "SSHOR"]
[TimeControl "40/5400+30:1800+30"]

1. e4 {[%emt 0:00:00]} c6 {[%emt 0:00:00]} 2. d4 {[%emt 0:00:00]} d5 {[%emt 0:00:00]} 3. Nc3 {[%emt 0:00:00]} dxe4 {[%emt 0:00:00]} 4. Nxe4 {[%emt 0:00:00]} Bf5 {[%emt 0:00:01] LiveBook: 13049 Games} 5. Ng3 {[%emt 0:00:17]} Bg6 {[%emt 0:00:06]} 6. h4 {[%emt 0:00:21]} h6 {[%emt 0:00:26]} 7. Nf3 {[%emt 0:00:12]} Nd7 {[%emt 0:00:26]} 8. h5 {[%emt 0:00:14]} Bh7 {[%emt 0:00:11]} 9. Bd3 {[%emt 0:00:13]} Bxd3 {[%emt 0:00:05]} 10. Qxd3 {[%emt 0:00:06]} e6 {[%emt 0:00:15]} 11. Bd2 {[%emt 0:01:07]} Ngf6 {[%emt 0:00:12]} 12. O-O-O {[%emt 0:00:18]} Be7 {[%emt 0:00:06]} 13. Ne4 {[%emt 0:00:25]} Nxe4 {[%emt 0:02:56]} 14. Qxe4 {[%emt 0:00:07]} Nf6 {[%emt 0:00:04] B19: Classical Caro-Kann: 4...Bf5 main line} 15. Qd3 {[%emt 0:00:46]} c5 {[%emt 0:06:14]} 16. Qb5+ {[%emt 0:01:10]} Qd7 {[%emt 0:00:25]} 17. Qxd7+ {[%emt 0:00:18]} Nxd7 {[%emt 0:00:11]} 18. Be3 {[%emt 0:00:20] [#]} c4 $146 {[%emt 0:08:06]} ({Predecessor:} 18... cxd4 19. Bxd4 Bf6 20. Rhe1 Ke7 21. Ne5 Bxe5 22. Bxe5 Nxe5 23. Rxe5 {1-0 (49) Chigaev,M (2551)-Dreev,A (2660) Sochi 2016}) 19. d5 {[%emt 0:05:42]} e5 {[%emt 0:04:06]} 20. d6 {[%emt 0:07:06]} Bd8 {[%emt 0:04:24]} 21. Rd5 {[%emt 0:14:01]} f6 {[%emt 0:03:00]} 22. Nh4 {[%emt 0:01:23]} Kf7 {[%emt 0:03:51]} 23. Rhd1 {[%emt 0:09:22]} Bb6 {[%emt 0:12:09]} 24. Nf5 {[%emt 0:04:48]} Rhd8 {[%emt 0:06:16]} 25. Bxb6 {[%emt 0:12:28]} axb6 {[%emt 0:01:31]} 26. Kb1 {[%emt 0:01:55]} Rac8 {[%emt 0:07:13]} 27. c3 {[%emt 0:10:53]} Rc5 {[%emt 0:01:44]} 28. Rxc5 {[%emt 0:06:08]} Nxc5 {[%emt 0:03:15]} 29. d7 {[%emt 0:01:23]} Nd3 {[%emt 0:19:09]} 30. Nd6+ {[%emt 0:00:58]} Ke7 {[%emt 0:01:14]} 31. Nxc4 {[%emt 0:00:47]} Nxf2 {[%emt 0:00:25]} 32. Rd5 {[%emt 0:02:03]} Rxd7 {[%emt 0:05:27]} 33. Nxb6 {[%emt 0:00:06]} Rxd5 {[%emt 0:00:38]} 34. Nxd5+ {[%emt 0:00:02]} Ke6 {[%emt 0:04:44]} 35. c4 {[%emt 0:00:06]} Ne4 {[%emt 0:01:23]} 36. Kc2 {[%emt 0:03:10]} Ng3 {[%emt 0:00:11]} 37. a4 {[%emt 0:00:41]} Nxh5 {[%emt 0:00:18]} 38. a5 {[%emt 0:00:07]} Kd6 {[%emt 0:03:06]} 39. b4 {[%emt 0:00:36]} Ng3 {[%emt 0:01:16]} 40. Kd3 {[%emt 0:00:00]} f5 {[%emt 0:00:00]} 41. b5 {[%emt 0:11:22]} Ne4 {[%emt 0:03:55]} 42. Nb4 {[%emt 0:06:19]} Nc5+ {[%emt 0:01:39]} 43. Kc3 {[%emt 0:00:46]} f4 {[%emt 0:09:36]} 44. a6 {[%emt 0:03:39]} bxa6 {[%emt 0:00:20]} 45. bxa6 {[%emt 0:00:06]} Kc7 {[%emt 0:02:22]} 46. Nd5+ {[%emt 0:09:10]} Kc6 {[%emt 0:01:57]} 47. Ne7+ {[%emt 0:00:49]} Kb6 {[%emt 0:01:24]} 48. a7 {[%emt 0:00:13]} Kb7 {[%emt 0:01:10]} 49. Nc6 {[%emt 0:04:07]} e4 {[%emt 0:03:33]} 50. Kd4 {[%emt 0:03:43]} e3 {[%emt 0:00:29]} 51. Ne5 {[%emt 0:00:35]} Na4 {[%emt 0:04:38]} 52. Kd3 {[%emt 0:02:08]} Kxa7 {[%emt 0:02:02]} 53. Ng6 {[%emt 0:06:28]} Nc5+ {[%emt 0:00:58]} 54. Ke2 {[%emt 0:00:10]} Ne6 {[%emt 0:00:19]} 55. g3 {[%emt 0:00:12]} Nd4+ {[%emt 0:00:47]} 56. Kd3 {[%emt 0:00:24]} e2 {[%emt 0:00:25]} 0-1